Workbook

Sheet Tabelle1
C3: Berufhaftpflichtversicherung für Immobilientreuhänder
A6: Prämienberechnungsbasis: | C6: Immobilienmakler und Immobilienverwalter: Netto-Honorarumsatz pro Jahr
C7: Bauträger: Netto-Errichtungskosten (Herstellungsaufwand ohne Grundstückskosten) pro Jahr
C9: 50000 | J9: FALSE | Q9: 5
A10: Gesamtjahresumsatz | J10: FALSE
A12: Bauproduktionswert nur Bauträger | D12: 50000
A13: Gewerbebefugnis
J14: 1
O16: 1
J17: 1 | K17: 0 | L17: 1.2 | M17: 1 | N17: 100000 | O17: 3
J18: 1 | K18: 1000 | L18: 1 | M18: 2 | N18: 400000
B19: Versicherungssumme | E19: Selbstbehalt | K19: 3000 | L19: 0.85 | M19: 3 | N19: 1000000
K20: 5000 | L20: 0.8 | M20: 4 | N20: 2000000
A21: Zusatzdeckung bei Bauträgerrisiko | K21: 20000 | L21: 0.7 | M21: 5 | N21: 3000000
K22: 50000 | L22: 0.55 | M22: 6
J23: 1
Q26: 100000
A27: Prämiensatz: | B27: =B28*1.11 -> 8.490834 | C27: ‰ inkl. VSt. | Q27: 400000
B28: =(IF(J14=1,F42,C38))*100 -> 7.6494 | C28: ‰ exkl. VSt. | Q28: 1000000
B29: =IF(B46<B31,B31,B46) -> 424.5417 | Q29: 2000000
A30: Vorausprämie: | Q30: 3000000
B31: =C47+D48 -> 424.5417
A32: Mindestprämie:
A35: Prämie Brutto | C35: =(C36*1.11) -> 0.074481 | D35: =ROUND(B27,4) -> 8.4908 | E35: Zu und abschläge Mindestprämie | F35: =IF(J18=1,L17,IF(J18=2,L18,IF(J18=3,L19,IF(J18=4,L20,IF(J18=5,L21,IF(J18=6,L22)))))) -> 1.2
A36: Prämie Netto | C36: =(IF(Tabelle1!C9<Tabelle2!B9,Tabelle2!C8,IF(Tabelle1!C9<Tabelle2!B10,Tabelle2!C9,IF(Tabelle1!C9<Tabelle2!B11,Tabelle2!C10,IF(Tabelle1!C9<Tabelle2!B12,Tabelle2!C11,IF(Tabelle1!C9<Tabelle2!B13,Tabelle2!C12,IF(Tabelle1!C9<Tabelle2!B14,Tabelle2!C13,IF(Tabelle1!C9<Tabelle2!B15,Tabelle2!C14,IF(Tabelle1!C9<Tabelle2!B16,Tabelle2!C15,IF(Tabelle1!C9<Tabelle2!B17,Tabelle2!C16,IF(Tabelle1!C9<Tabelle2!B18,Tabelle2!C17,IF(Tabelle1!C9<Tabelle2!B19,Tabelle2!C18,IF(Tabelle1!C9<Tabelle2!B20,Tabelle2!C19,IF(Tabelle1!C9<Tabelle2!B21,Tabelle2!C20,IF(Tabelle1!C9<Tabelle2!B22,Tabelle2!C21,IF(Tabelle1!C9<Tabelle2!B23,Tabelle2!C22,IF(Tabelle1!C9<999999999999999000000,Tabelle2!C23)))))))))))))))))/100 -> 0.0671
A37: Selbstbehalt - | C37: =IF(J18=1,C36*L17,IF(J18=2,C36*L18,IF(J18=3,C36*L19,IF(J18=4,C36*L20,IF(J18=5,C36*L21,IF(J18=6,C36*L22)))))) -> 0.08052
A38: Verssumme | C38: =IF(O17=1,C37*1,IF(O17=2,Tabelle1!C37*Tabelle2!J2,IF(O17=3,Tabelle1!C37*Tabelle2!O3,IF(O17=4,Tabelle1!C37*Tabelle2!U3,IF(O17=5,Tabelle1!C37*Tabelle2!AA3))))) -> 0.152988
A39: Berechnung Zu abschläge | B39: Bt
A40: =(D12/C9)/1 -> 1 | B40: =IF(J23=1,(C38/2),IF(J23=2,(C38/2)*1.4,(C38/2)*2)) -> 0.076494 | C40: =A40*B40 -> 0.076494
A41: =(A40-1)*(-1) -> 0 | B41: =C38 -> 0.152988 | C41: =A41*B41 -> 0
A42: BT Prämie | C42: =SUM(C40:C41) -> 0.076494 | E42: =C42 -> 0.076494 | F42: =E42 -> 0.076494
A43: BauherrnHaftpflicht | B43: =C37*1.4 -> 0.112728
A44: Gewährleistung und BauheernHp | B44: =C37*2 -> 0.16104
A45: Abzüge Versicherungssumme
A46: Gesamtprämie | B46: =(C9*D35)/1000 -> 424.54
A47: Mindestprämie Basis | B47: =(IF(O17=1,Tabelle2!C5,IF(O17=2,Tabelle2!I4,IF(O17=3,Tabelle2!N5,IF(O17=4,Tabelle2!T5,IF(O17=5,Tabelle2!Z5,))))))*F35 -> 849.0834 | C47: =A41*B47 -> 0
A48: Mindestpr Bauträger | B48: =(IF(J14=1,B47/2,B47)) -> 424.5417 | C48: =A40*B48 -> 424.5417 | D48: =IF(J23=1,C48,IF(J23=2,C48*1.4,IF(J23=3,C48*2))) -> 424.5417

Sheet Tabelle2
A1: 1 | B1: Immobilientreuhänder | G1: 2 | H1: Immobilienmakler und Immobilienverwalter | J1: Zuschlag in % | L1: 3 | M1: Hypothekarkreditvermittler | Q1: 4 | R1: Hypothekarkreditvermittler | S1: Variante für Hypothekarkreditvermittler | W1: 5 | X1: Hypothekarkreditvermittler | Y1: Variante für Hypothekarkreditvermittler
B2: ausschließlich Immobilienmakler | H2: Versicherungssumme: | I2: 400000 | J2: 1.38 | M2: Immobilienmakler und Immobilienverwalter | O2: Zuschlag in % | R2: Immobilienmakler und Immobilienverwalter | S2: Immobilienmakler und Immobilienverwalter | U2: Zuschlag in % | X2: Immobilienmakler und Immobilienverwalter | Y2: Immobilienmakler und Immobilienverwalter | AA2: Zuschlag in %
B3: Versicherungssumme: | C3: 100000 | D3: BASIS | H3: Selbstbehalt: | I3: 1.000,00 fix je Schadenfall | M3: Versicherungssumme: | N3: 1000000 | O3: 1.9 | S3: Versicherungssumme: | T3: 2000000 | U3: 2.45 | Y3: Versicherungssumme: | Z3: 3000000 | AA3: 2.9
B4: Selbstbehalt: | C4: 1.000,00 fix je Schadenfall | D4: BASIS | H4: Mindestprämie inkl. VSt | I4: 513.9189 | M4: Selbstbehalt: | N4: 1.000,00 fix je Schadenfall | S4: Selbstbehalt: | T4: 1.000,00 fix je Schadenfall | Y4: Selbstbehalt: | Z4: 1.000,00 fix je Schadenfall
B5: Mindestprämie inkl. VSt | C5: 372.405 | H5: Umsatz/ Baupr.W. bis | I5: Prämiensatz (netto) in %o | J5: Prämiensatz (brutto) in %o | M5: Mindestprämie inkl. VSt | N5: 707.5695 | S5: Mindestprämie inkl. VSt | T5: 912.39225 | Y5: Mindestprämie inkl. VSt | Z5: 1079.9745
B6: Falls Tarifänderung ist ausschließlich der Wert C13 zu ändern!!! | H6: 50000 | I6: 9.2598 | J6: 10.278378 | M6: Umsatz/ Baupr.W. bis | N6: Prämiensatz (netto) in %o | O6: Prämiensatz (brutto) in %o | S6: Umsatz/ Baupr.W. bis | T6: Prämiensatz (netto) in %o | U6: Prämiensatz (brutto) in %o | Y6: Umsatz/ Baupr.W. bis | Z6: Prämiensatz (netto) in %o | AA6: Prämiensatz (brutto) in %o
A7: Degression in % | B7: Umsatz/ Baupr.W. bis | C7: Prämiensatz (netto) in %o | D7: Prämiensatz (brutto) in %o | H7: 100000 | I7: 8.25233376 | J7: 9.160090474 | M7: 50000 | N7: 12.749 | O7: 14.15139 | S7: 50000 | T7: 16.4395 | U7: 18.247845 | Y7: 50000 | Z7: 19.459 | AA7: 21.59949
B8: 50000 | C8: 6.71 | D8: 7.4481 | H8: 200000 | I8: 6.6855756 | J8: 7.420988916 | M8: 100000 | N8: 11.3619088 | O8: 12.61171877 | R8: -10.88 | S8: 100000 | T8: 14.6508824 | U8: 16.26247946 | X8: -10.88 | Y8: 100000 | Z8: 17.3418608 | AA8: 19.24946549
A9: -10.88 | B9: 100000 | C9: 5.979952 | D9: 6.63774672 | H9: 300000 | I9: 5.741076 | J9: 6.37259436 | M9: 200000 | N9: 9.204778 | O9: 10.21730358 | R9: -27.8 | S9: 200000 | T9: 11.869319 | U9: 13.17494409 | X9: -27.8 | Y9: 200000 | Z9: 14.049398 | AA9: 15.59483178
A10: -27.8 | B10: 200000 | C10: 4.84462 | D10: 5.3775282 | H10: 400000 | I10: 5.09289 | J10: 5.6531079 | M10: 300000 | N10: 7.90438 | O10: 8.7738618 | R10: -38 | S10: 300000 | T10: 10.19249 | U10: 11.3136639 | X10: -38 | Y10: 300000 | Z10: 12.06458 | AA10: 13.3916838
A11: -38 | B11: 300000 | C11: 4.1602 | D11: 4.617822 | H11: 500000 | I11: 4.65027156 | J11: 5.161801432 | M11: 400000 | N11: 7.01195 | O11: 7.7832645 | R11: -45 | S11: 400000 | T11: 9.041725 | U11: 10.03631475 | X11: -45 | Y11: 400000 | Z11: 10.70245 | AA11: 11.8797195
A12: -45 | B12: 400000 | C12: 3.6905 | D12: 4.096455 | H12: 750000 | I12: 4.07060808 | J12: 4.518374969 | M12: 500000 | N12: 6.4025478 | O12: 7.106828058 | R12: -49.78 | S12: 500000 | T12: 8.2559169 | U12: 9.164067759 | X12: -49.78 | Y12: 500000 | Z12: 9.7723098 | AA12: 10.84726388
A13: -49.78 | B13: 500000 | C13: 3.369762 | D13: 3.74043582 | H13: 1000000 | I13: 3.39464268 | J13: 3.768053375 | M13: 750000 | N13: 5.6044604 | O13: 6.220951044 | R13: -56.04 | S13: 750000 | T13: 7.2268042 | U13: 8.021752662 | X13: -56.04 | Y13: 750000 | Z13: 8.5541764 | AA13: 9.495135804
A14: -56.04 | B14: 750000 | C14: 2.949716 | D14: 3.27418476 | H14: 1250000 | I14: 2.99461932 | J14: 3.324027445 | M14: 1000000 | N14: 4.6737834 | O14: 5.187899574 | R14: -63.34 | S14: 1000000 | T14: 6.0267207 | U14: 6.689659977 | X14: -63.34 | Y14: 1000000 | Z14: 7.1336694 | AA14: 7.918373034
A15: -63.34 | B15: 1000000 | C15: 2.459886 | D15: 2.73047346 | H15: 1500000 | I15: 2.8010895 | J15: 3.109209345 | M15: 1250000 | N15: 4.1230266 | O15: 4.576559526 | R15: -67.66 | S15: 1250000 | T15: 5.3165343 | U15: 5.901353073 | X15: -67.66 | Y15: 1250000 | Z15: 6.2930406 | AA15: 6.985275066
A16: -67.66 | B16: 1250000 | C16: 2.170014 | D16: 2.40871554 | H16: 2000000 | I16: 2.60848566 | J16: 2.895419083 | M16: 1500000 | N16: 3.8565725 | O16: 4.280795475 | R16: -69.75 | S16: 1500000 | T16: 4.97294875 | U16: 5.519973113 | X16: -69.75 | Y16: 1500000 | Z16: 5.8863475 | AA16: 6.533845725
A17: -69.75 | B17: 1500000 | C17: 2.029775 | D17: 2.25305025 | H17: 3000000 | I17: 2.29087452 | J17: 2.542870717 | M17: 2000000 | N17: 3.5913933 | O17: 3.986446563 | R17: -71.83 | S17: 2000000 | T17: 4.63100715 | U17: 5.140417937 | X17: -71.83 | Y17: 2000000 | Z17: 5.4816003 | AA17: 6.084576333
A18: -71.83 | B18: 2000000 | C18: 1.890207 | D18: 2.09812977 | H18: 4000000 | I18: 2.1112344 | J18: 2.343470184 | M18: 3000000 | N18: 3.1541026 | O18: 3.501053886 | R18: -75.26 | S18: 3000000 | T18: 4.0671323 | U18: 4.514516853 | X18: -75.26 | Y18: 3000000 | Z18: 4.8141566 | AA18: 5.343713826
A19: -75.26 | B19: 3000000 | C19: 1.660054 | D19: 1.84265994 | H19: 5000000 | I19: 1.80751296 | J19: 2.006339386 | M19: 4000000 | N19: 2.906772 | O19: 3.22651692 | R19: -77.2 | S19: 4000000 | T19: 3.748206 | U19: 4.16050866 | X19: -77.2 | Y19: 4000000 | Z19: 4.436652 | AA19: 4.92468372
A20: -77.2 | B20: 4000000 | C20: 1.52988 | D20: 1.6981668 | H20: 7500000 | I20: 1.60101942 | J20: 1.777131556 | M20: 5000000 | N20: 2.4886048 | O20: 2.762351328 | R20: -80.48 | S20: 5000000 | T20: 3.2089904 | U20: 3.561979344 | X20: -80.48 | Y20: 5000000 | Z20: 3.7983968 | AA20: 4.216220448
A21: -80.48 | B21: 5000000 | C21: 1.309792 | D21: 1.45386912 | H21: 10000000 | I21: 1.35285678 | J21: 1.501671026 | M21: 7500000 | N21: 2.2043021 | O21: 2.446775331 | R21: -82.71 | S21: 7500000 | T21: 2.84238955 | U21: 3.155052401 | X21: -82.71 | Y21: 7500000 | Z21: 3.3644611 | AA21: 3.734551821
A22: -82.71 | B22: 7500000 | C22: 1.160159 | D22: 1.28777649 | M22: 10000000 | N22: 1.8626289 | O22: 2.067518079 | R22: -85.39 | S22: 10000000 | T22: 2.40181095 | U22: 2.666010155 | X22: -85.39 | Y22: 10000000 | Z22: 2.8429599 | AA22: 3.155685489
A23: -85.39 | B23: 10000000 | C23: 0.980331 | D23: 1.08816741
M24: =(220000*N10)/1000 -> 1738.9636
C38: FALSE
